Workbook

Sheet IF95 Kontrolní výpočet a návod
A78: Kontrolní výpočet a příklad použití funkcí IF95
A79: Pro kontrolu výpočtu s vyjímkou dyn. viskozity a tep. vodivosti jsou použita data z "Revised Release on the IAPWS Industrial Formulation 1995 …", číslo dokumentu IAPWS R6-95(2018) z roku 2018; z tabulky 7 na straně 15.
A80: Výpočet dynamické viskozity a teplotní vodivosti je zde jen pro informaci, kontrolní data jsou v samostatných tabulkách.
A82: Vstupní hodnoty | C82: Výstupní hodnoty
A83: Tlak | B83: Teplota | C83: Měrný objem | D83: Měrná hmotnost | E83: Měrná entalpie | F83: Měrná vnitřní energie | G83: Měrná entropie | H83: Měrná izobarická tepelná kapacita | I83: Měrná izochorická tepelná kapacita | J83: Izoentropický exponent | K83: Rychlost zvuku | L83: Dynamická viskozita | M83: Teplotní vodivost
A84: P [MPa] | B84: T [K] | C84: v [m3/kg] | D84: r [kg/m3] | E84: h [kJ/kg] | F84: u [kJ/kg] | G84: s [kJ/kgK] | H84: cp [kJ/kgK] | I84: cv [kJ/kgK] | J84: kapa [--] | K84: w [m/s] | L84: mi [mPa.s] | M84: lam [mW/Km]
A85: 0.0992418352 | B85: 300 | C85: =IF95IAPWS(A85,B85,"K","V") -> 0.001003455902 | D85: =1/IF95IAPWS(A85,B85,"K","V") -> 996.556 | E85: =IF95IAPWS(A85,B85,"K","H") -> 112.6529816 | F85: =IF95IAPWS(A85,B85,"K","U") -> 112.5533968 | G85: =IF95IAPWS(A85,B85,"K","S") -> 0.3930626429 | H85: =IF95IAPWS(A85,B85,"K","Cp") -> 4.180641665 | I85: =IF95IAPWS(A85,B85,"K","Cv") -> 4.130181116 | J85: =IF95IAPWS(A85,B85,"K","Kapa") -> 22639.59563 | K85: =IF95IAPWS(A85,B85,"K","W") -> 1501.519138 | L85: =IF95IAPWS(A85,B85,"K","Mi")*1000000 -> 853.7427414 | M85: =IF95IAPWS(A85,B85,"K","Lam")*1000 -> 609.8106816
A86: 20.0022515 | B86: 300 | C86: 0.0009947200261 | D86: 1005.308 | E86: 130.8398125 | F86: 110.9431724 | G86: 0.387405401 | H86: 4.128217676 | I86: 4.067983471 | J86: 118.4116903 | K86: 1534.925011 | L86: 852.5296768 | M86: 620.6268514
A87: 700.004704 | B87: 300 | C87: 0.00084160774 | D87: 1188.202 | E87: 668.5179255 | F87: 79.38854861 | G87: 0.1326096163 | H87: 3.773219434 | I87: 3.461355802 | J87: 10.13543552 | K87: 2443.579917 | L87: 1309.230314 | M87: 795.6448565
A88: 0.0999679423 | B88: 500 | C88: 2.298850575 | D88: 0.4349999999 | E88: 2928.559658 | F88: 2698.748296 | G88: 7.944882714 | H88: 1.981249317 | I88: 1.508175414 | J88: 1.308240452 | K88: 548.3142527 | L88: 17.2990915 | M88: 36.03173667
A89: 0.999938125 | B89: 500 | C89: 0.2206531332 | D89: 4.532000001 | E89: 2891.221083 | F89: 2670.581603 | G89: 6.825027253 | H89: 2.279452788 | I89: 1.669910245 | J89: 1.300838259 | K89: 535.7390013 | L89: 17.05357744 | M89: 38.47256084
A90: 10.0003858 | B90: 500 | C90: 0.001193281823 | D90: 838.025 | E90: 977.1816241 | F90: 965.2483455 | G90: 2.566909185 | H90: 4.602224481 | I90: 3.221062187 | J90: 135.4333627 | K90: 1271.284409 | L90: 119.8283927 | M90: 646.4085607
A91: 700.000405 | B91: 500 | C91: 0.0009220294977 | D91: 1084.564 | E91: 1411.113982 | F91: 765.6929603 | G91: 2.032375092 | H91: 3.671541091 | I91: 3.07437693 | J91: 9.013939872 | K91: 2412.008765 | L91: =IF95IAPWS(A91,B91,"K","Mi") -> Mimo rozsah! | M91: =IF95IAPWS(A91,B91,"K","Lam") -> Mimo rozsah!
A92: 22.03847558 | B92: 647 | C92: 0.002793296089 | D92: 358 | E92: 2028.509693 | F92: 1966.949706 | G92: 4.320923067 | H92: 3531.798414 | I92: 6.183157275 | J92: 1.032767272 | K92: 252.1450783 | L92: =IF95IAPWS(A92,B92,"K","Mi")*1000000 -> 46.363667 | M92: =IF95IAPWS(A92,B92,"K","Lam")*1000 -> 1170.960716
A93: 0.1000625587 | B93: 900 | C93: 4.149377591 | D93: 0.2410000001 | E93: 3764.975758 | F93: 3349.778419 | G93: 9.166531938 | H93: 2.221644685 | I93: 1.75890657 | J93: 1.262569048 | K93: 724.0271465 | L93: =IF95IAPWS(A93,B93,"K","Mi")*1000000 -> 33.6803318 | M93: =IF95IAPWS(A93,B93,"K","Lam")*1000 -> 82.64672117
A94: 20.00006903 | B94: 900 | C94: 0.01900598689 | D94: 52.61499998 | E94: 3612.785555 | F94: 3232.664505 | G94: 6.590702249 | H94: 2.719285382 | I94: 1.935105255 | J94: 1.283344765 | K94: 698.4456738 | L94: =IF95IAPWS(A94,B94,"K","Mi")*1000000 -> 35.02780507 | M94: =IF95IAPWS(A94,B94,"K","Lam")*1000 -> 100.3519005
A95: 700.000006 | B95: 900 | C95: 0.001148410198 | D95: 870.7690001 | E95: 2865.524559 | F95: 2061.637413 | G95: 4.172238016 | H95: 3.580319857 | I95: 2.664223498 | J95: 5.072500832 | K95: 2019.336083 | L95: =IF95IAPWS(A95,B95,"K","Mi") -> Mimo rozsah! | M95: =IF95IAPWS(A95,B95,"K","Lam") -> Mimo rozsah!
A96: Poznámka: | B96: v této tabulce jsou některé vstupní hodnoty (Tlak nebo Teplota) zadány na více míst, než jsou viditelné. Je to proto, že u nich je potřeba zadat ještě další pozice ve zdroji neuvedené, aby vypočtené hodnoty přesně odpovídaly hodnotám ve zdrojových tabulkách.
B97: Ovšem jde jen o optický efekt, protože odchylky způsobené nezadáním neviditelných pozic jsou natolik malé, že se bohatě vejdou do nejistot výpočtu uvedených ve zdroji. | L97: ;
E100: Kontrolní výpočet a příklad použití funkcí IF95 - křivka sytosti
E101: Pro kontrolu jsou použita data z "Release on the IAPWS Industrial Formulation 1995 …" z tabulky 8 na straně 15.
G103: 275 | H103: 450 | I103: 625
E104: Tlak sytosti [MPa] | G104: =IF95KrSyt(G103,"K",0,"P") -> 0.0006984511667 | H104: =IF95KrSyt(H103,"K",0,"P") -> 0.9322035636 | I104: =IF95KrSyt(I103,"K",0,"P") -> 16.90826932
E105: Měrná hmotnost r' [kg/m3] | G105: =1/IF95KrSyt(G103,"K",0,"V") -> 999.8874061 | H105: =1/IF95KrSyt(H103,"K",0,"V") -> 890.3412498 | I105: =1/IF95KrSyt(I103,"K",0,"V") -> 567.090385
E106: Měrná hmotnost r'' [kg/m3] | G106: =1/IF95KrSyt(G103,"K",1,"V") -> 0.005506649189 | H106: =1/IF95KrSyt(H103,"K",1,"V") -> 4.812003601 | I106: =1/IF95KrSyt(I103,"K",1,"V") -> 118.2902808
E107: Měrná entalpie h' [kJ/kg] | G107: =IF95KrSyt(G103,"K",0,"H") -> 7.759722016 | H107: =IF95KrSyt(H103,"K",0,"H") -> 749.161585 | I107: =IF95KrSyt(I103,"K",0,"H") -> 1686.26976
E108: Měrná entalpie h'' [kJ/kg] | G108: =IF95KrSyt(G103,"K",1,"H") -> 2504.28995 | H108: =IF95KrSyt(H103,"K",1,"H") -> 2774.41078 | I108: =IF95KrSyt(I103,"K",1,"H") -> 2550.716244
E109: Měrná entropie s' [kJ/kgK] | G109: =IF95KrSyt(G103,"K",0,"S") -> 0.02830946696 | H109: =IF95KrSyt(H103,"K",0,"S") -> 2.108658447 | I109: =IF95KrSyt(I103,"K",0,"S") -> 3.80194683
E110: Měrná entropie s'' [kJ/kgK] | G110: =IF95KrSyt(G103,"K",1,"S") -> 9.106601205 | H110: =IF95KrSyt(H103,"K",1,"S") -> 6.609212213 | I110: =IF95KrSyt(I103,"K",1,"S") -> 5.185061205
B116: Kontrolní výpočet a příklad použití funkcí pro dynamickou viskozitu podle dokumentu č. IAPWS R12-08
A118: Zde jsou data pro kontrolu zjednodušeného programu, když m2=1, z tabulky 4. Proto vypočtené hodnoty viskozity označené * přesně nesouhlasí, protože funkce IF95IAPWS(...;...;...;"Mi") zde použitá počítá viskozitu včetně viskozity m2 pro kritickou oblast, tedy m2<>1. | G118: Zde jsou data pro kontrolu programu z tabulky 5 na straně 9, tedy pro program, který viskozitu počítá včetně kritické oblasti. Data jsou pro oblast blízko kritického bodu, kde se tady dílčí viskozita m2 počítá.
B121: Vstupní hodnoty | D121: Výstupní hodnoty | H121: Vstupní hodnoty | J121: Výstupní hodnoty
B122: Tlak | C122: Teplota | D122: Dynamická viskozita | E122: Měrná hmotnost | H122: Tlak | I122: Teplota | J122: Dynamická viskozita | K122: Měrná hmotnost
B123: P [MPa] | C123: T [K] | D123: mi [mPa.s] | E123: r [kg/m3] | H123: P [MPa] | I123: T [K] | J123: mi [mPa.s] | K123: r [kg/m3]
B124: 2.217134885 | C124: 298.15 | D124: =IF95IAPWS(B124,C124,"K","Mi")*1000000 -> 889.7351698 | E124: =1/IF95IAPWS(B124,C124,"K","V") -> 998 | H124: 19.4596313 | I124: 647.35 | J124: =IF95IAPWS(H124,I124,"K","Mi")*1000000 -> 25.52067683 | K124: =1/IF95IAPWS(H124,I124,"K","V") -> 121.9999998
B125: 760.7553749 | C125: 298.15 | D125: 1437.649467 | E125: 1199.999998 | H125: 21.99246235 | I125: 647.35 | J125: 31.33758918 | K125: 221.9999998
B126: 100.6449621 | C126: 373.15 | D126: 307.8836358 | E126: 1000 | H126: 22.12065906 | I126: 647.35 | J126: 36.22814319 | K126: 272.0000003
B127: 0.196901583 | C127: 433.15 | D127: 14.53832449 | E127: 1 | H127: 22.13189306 | I127: 647.35 | J127: 42.96157876 | K127: 321.9999999
B128: 214.3526842 | C128: 433.15 | D128: 217.6853653 | E128: 1000 | H128: 22.14397697 | I128: 647.35 | J128: 45.68820443 | K128: 371.9999999
B129: 0.402225473 | C129: 873.15 | D129: 32.61928697 | E129: 1.000000004 | H129: 22.31472165 | I129: 647.35 | J129: 49.436256 | K129: 421.9999999
B130: 33.60860806 | C130: 873.15 | D130: 35.80226172 | E130: 100
B131: 208.1808099 | C131: 873.15 | D131: 77.43019526 | E131: 599.9999998
B132: 0.5411062117 | C132: 1173.15 | D132: 44.21724451 | E132: 1.000000001
B133: 51.42489305 | C133: 1173.15 | D133: 47.64043308 | E133: 100
B134: 219.7236161 | C134: 1173.15 | D134: 64.15460785 | E134: 400
B138: Kontrolní výpočet a příklad použití funkcí pro teplotní vodivost podle dokumentu č. IAPWS R15-11
A140: Zde jsou data pro kontrolu zjednodušeného programu, když l2=0, z tabulky 4. Proto vypočtené hodnoty vodivosti označené * přesně nesouhlasí, protože funkce IF95IAPWS(...;...;...;"Lam") zde použitá počítá vodivost včetně vodivosti l2 pro kritickou oblast, tedy l2<>0. Poznámka: protože zde nelze vložit nulový tlak, který by odpovídal nulovému r z tabulky, je pro první a poslední řádek tabulky vložen tlak 1E-9 MPa, což je miminum, které vložit lze, a s ním už vypočtené vodivosti odpovídají hodnotám v tabulce, ovšem r je nepatrně větší než 0. | G140: Zde jsou data pro kontrolu programu z tabulky 5 na straně 10, tedy pro program, který vodivost počítá včetně kritické oblasti. Data jsou pro oblast blízko kritického bodu, kde se tady dílčí vodivost l2 počítá.
B145: Vstupní hodnoty | D145: Výstupní hodnoty | H145: Vstupní hodnoty | J145: Výstupní hodnoty
B146: Tlak | C146: Teplota | D146: Teplotní vodivost | E146: Měrná hmotnost | H146: Tlak | I146: Teplota | J146: Teplotní vodivost | K146: Měrná hmotnost
B147: P [MPa] | C147: T [K] | D147: lam [mW/Km] | E147: r [kg/m3] | H147: P [MPa] | I147: T [K] | J147: lam [mW/Km] | K147: r [kg/m3]
B148: 1e-09 | C148: 298.15 | D148: =IF95IAPWS(B148,C148,"K","Lam")*1000 -> 18.43418835 | E148: =1/IF95IAPWS(B148,C148,"K","V") -> 7.267357011e-09 | H148: 0.2974246663 | I148: 647.35 | J148: =IF95IAPWS(H148,I148,"K","Lam")*1000 -> 51.92989239 | K148: =1/IF95IAPWS(H148,I148,"K","V") -> 1
B149: 2.217134886 | C149: 298.15 | D149: =IF95IAPWS(B149,C149,"K","Lam")*1000 -> 608.0107818 | E149: =1/IF95IAPWS(B149,C149,"K","V") -> 998 | H149: 19.45963132 | I149: 647.35 | J149: 130.9228853 | K149: 122.0000001
B150: 760.7553839 | C150: 298.15 | D150: =IF95IAPWS(B150,C150,"K","Lam")*1000 -> 799.1768437 | E150: =1/IF95IAPWS(B150,C150,"K","V") -> 1200 | H150: 21.99246235 | I150: 647.35 | J150: 367.7874592 | K150: 222.0000001
B151: 1e-09 | C151: 873.15 | D151: =IF95IAPWS(B151,C151,"K","Lam")*1000 -> 79.1034659 | E151: =1/IF95IAPWS(B151,C151,"K","V") -> 2.481546687e-09 | H151: 22.12065906 | I151: 647.35 | J151: 757.9597756 | K151: 272.0000003
H152: 22.13189306 | I152: 647.35 | J152: 1443.755555 | K152: 321.9999995
H153: 22.14397699 | I153: 647.35 | J153: 650.3194025 | K153: 371.9999999
H154: 22.31472165 | I154: 647.35 | J154: 448.8834875 | K154: 421.9999999
H155: 117.7337555 | I155: 647.35 | J155: 600.9613456 | K155: 750
A160: Kontrolní výpočet a příklad použití funkcí IF95 - výpočet iterací z P a H
A161: Pro kontrolu výpočtu s vyjímkou dyn. viskozity a tep. vodivosti jsou použita data z "Revised Release on the IAPWS Industrial Formulation 1995 …", číslo dokumentu IAPWS R6-95(2018) z roku 2018; z tabulky 7 na straně 15 s tím,
A162: že zde vstupující entalpie byla vzata z výpočtu z tlaku a teploty, protože v tabulce 7 entalpie není. Výpočet dynamické viskozity a teplotní vodivosti je zde jen pro informaci, kontrolní data jsou v samostatných tabulkách.
A164: Vstupní hodnoty | C164: Výstupní hodnoty
A165: Tlak | B165: Měrná entalpie | C165: Měrný objem | D165: Měrná hmotnost | E165: Teplota | F165: Měrná vnitřní energie | G165: Měrná entropie | H165: Měrná izobarická tepelná kapacita | I165: Měrná izochorická tepelná kapacita | J165: Izoentropický exponent | K165: Rychlost zvuku | L165: Dynamická viskozita | M165: Teplotní vodivost
A166: P [MPa] | B166: h [kJ/kg] | C166: v [m3/kg] | D166: r [kg/m3] | E166: [K] | F166: u [kJ/kg] | G166: s [kJ/kgK] | H166: cp [kJ/kgK] | I166: cv [kJ/kgK] | J166: kapa [--] | K166: w [m/s] | L166: mi [mPa.s] | M166: lam [mW/Km]
A167: 0.0992418352 | B167: 112.6529816 | C167: =IF95IAPWS(A167,B167,"H","V") -> 0.001003455902 | D167: =1/IF95IAPWS(A167,B167,"H","V") -> 996.556 | E167: =IF95IAPWS(A167,B167,"H","T")+273.15 -> 300 | F167: =IF95IAPWS(A167,B167,"H","U") -> 112.5533968 | G167: =IF95IAPWS(A167,B167,"H","S") -> 0.3930626428 | H167: =IF95IAPWS(A167,B167,"H","Cp") -> 4.180641665 | I167: =IF95IAPWS(A167,B167,"H","Cv") -> 4.130181116 | J167: =IF95IAPWS(A167,B167,"H","Kapa") -> 22639.59563 | K167: =IF95IAPWS(A167,B167,"H","W") -> 1501.519138 | L167: =IF95IAPWS(A167,B167,"H","Mi")*1000000 -> 853.7427415 | M167: =IF95IAPWS(A167,B167,"H","Lam")*1000 -> 609.8106815
A168: 20.0022515 | B168: 130.8398125 | C168: 0.0009947200261 | D168: 1005.308 | E168: 300 | F168: 110.9431724 | G168: 0.387405401 | H168: 4.128217676 | I168: 4.067983471 | J168: 118.4116903 | K168: 1534.925011 | L168: 852.5296768 | M168: 620.6268514
A169: 700.0047039 | B169: 668.5179255 | C169: 0.0008416077401 | D169: 1188.202 | E169: 300 | F169: 79.38854865 | G169: 0.1326096164 | H169: 3.773219434 | I169: 3.461355802 | J169: 10.13543552 | K169: 2443.579917 | L169: 1309.230314 | M169: 795.6448566
A170: 0.0999679423 | B170: 2928.559658 | C170: 2.298850576 | D170: 0.4349999997 | E170: 500.0000002 | F170: 2698.748297 | G170: 7.944882715 | H170: 1.981249317 | I170: 1.508175414 | J170: 1.308240452 | K170: 548.3142528 | L170: 17.29909151 | M170: 36.03173669
A171: 0.999938125 | B171: 2891.221083 | C171: 0.2206531332 | D171: 4.532000001 | E171: 500 | F171: 2670.581603 | G171: 6.825027253 | H171: 2.279452788 | I171: 1.669910245 | J171: 1.300838259 | K171: 535.7390013 | L171: 17.05357744 | M171: 38.47256084
A172: 10.0003858 | B172: 977.1816244 | C172: 0.001193281823 | D172: 838.0249999 | E172: 500.0000001 | F172: 965.2483458 | G172: 2.566909186 | H172: 4.602224482 | I172: 3.221062187 | J172: 135.4333626 | K172: 1271.284409 | L172: 119.8283926 | M172: 646.4085607
A173: 700.000405 | B173: 1411.113982 | C173: 0.0009220294977 | D173: 1084.564 | E173: 500 | F173: 765.6929603 | G173: 2.032375092 | H173: 3.671541091 | I173: 3.07437693 | J173: 9.013939872 | K173: 2412.008765 | L173: =IF95IAPWS(A173,B173,"H","Mi") -> Mimo rozsah! | M173: =IF95IAPWS(A173,B173,"H","Lam") -> Mimo rozsah!
A174: 22.03847558 | B174: 2028.509693 | C174: 0.002793296089 | D174: 358 | E174: 647 | F174: 1966.949706 | G174: 4.320923067 | H174: 3531.798412 | I174: 6.183157275 | J174: 1.032767272 | K174: 252.1450783 | L174: =IF95IAPWS(A174,B174,"H","Mi")*1000000 -> 46.363667 | M174: =IF95IAPWS(A174,B174,"H","Lam")*1000 -> 1170.960716
A175: 0.1000625587 | B175: 3764.975758 | C175: 4.149377591 | D175: 0.2410000001 | E175: 900 | F175: 3349.778419 | G175: 9.166531938 | H175: 2.221644685 | I175: 1.75890657 | J175: 1.262569048 | K175: 724.0271465 | L175: =IF95IAPWS(A175,B175,"H","Mi")*1000000 -> 33.6803318 | M175: =IF95IAPWS(A175,B175,"H","Lam")*1000 -> 82.64672117
A176: 20.00006903 | B176: 3612.785555 | C176: 0.01900598689 | D176: 52.61499998 | E176: 900 | F176: 3232.664505 | G176: 6.590702249 | H176: 2.719285382 | I176: 1.935105255 | J176: 1.283344765 | K176: 698.4456738 | L176: =IF95IAPWS(A176,B176,"H","Mi")*1000000 -> 35.02780507 | M176: =IF95IAPWS(A176,B176,"H","Lam")*1000 -> 100.3519005
A177: 700.000006 | B177: 2865.524559 | C177: 0.001148410198 | D177: 870.7690001 | E177: 900 | F177: 2061.637413 | G177: 4.172238016 | H177: 3.580319857 | I177: 2.664223498 | J177: 5.072500832 | K177: 2019.336083 | L177: =IF95IAPWS(A177,B177,"H","Mi") -> Mimo rozsah! | M177: =IF95IAPWS(A177,B177,"H","Lam") -> Mimo rozsah!
A178: Poznámka: | B178: v této tabulce jsou některé vstupní hodnoty (Tlak nebo Entapie) zadány na více míst, než jsou viditelné. Je to proto, že u nich je potřeba zadat ještě další pozice ve zdroji neuvedené, aby vypočtené hodnoty přesně odpovídaly hodnotám ve zdrojových tabulkách.
B179: Ovšem jde jen o optický efekt, protože odchylky způsobené nezadáním neviditelných pozic jsou natolik malé, že se bohatě vejdou do nejistot výpočtu uvedených ve zdroji.
A182: Kontrolní výpočet a příklad použití funkcí IF95 - výpočet iterací z P a S
A183: Pro kontrolu výpočtu s vyjímkou dyn. viskozity a tep. vodivosti jsou použita data z "Revised Release on the IAPWS Industrial Formulation 1995 …", číslo dokumentu IAPWS R6-95(2018) z roku 2018; z tabulky 7 na straně 15.
A184: Výpočet dynamické viskozity a teplotní vodivosti je zde jen pro informaci, kontrolní data jsou v samostatných tabulkách.
A186: Vstupní hodnoty | C186: Výstupní hodnoty
A187: Tlak | B187: Měrná entropie | C187: Měrný objem | D187: Měrná hmotnost | E187: Měrná entalpie | F187: Měrná vnitřní energie | G187: Teplota | H187: Měrná izobarická tepelná kapacita | I187: Měrná izochorická tepelná kapacita | J187: Izoentropický exponent | K187: Rychlost zvuku | L187: Dynamická viskozita | M187: Teplotní vodivost
A188: P [MPa] | B188: s [kJ/kgK] | C188: v [m3/kg] | D188: r [kg/m3] | E188: h [kJ/kg] | F188: u [kJ/kg] | G188: [K] | H188: cp [kJ/kgK] | I188: cv [kJ/kgK] | J188: kapa [--] | K188: w [m/s] | L188: mi [mPa.s] | M188: lam [mW/Km]
A189: 0.0992418352 | B189: 0.3930626429 | C189: =IF95IAPWS(A189,B189,"S","V") -> 0.001003455902 | D189: =1/IF95IAPWS(A189,B189,"S","V") -> 996.556 | E189: =IF95IAPWS(A189,B189,"S","H") -> 112.6529816 | F189: =IF95IAPWS(A189,B189,"S","U") -> 112.5533968 | G189: =IF95IAPWS(A189,B189,"S","T")+273.15 -> 300 | H189: =IF95IAPWS(A189,B189,"S","Cp") -> 4.180641665 | I189: =IF95IAPWS(A189,B189,"S","Cv") -> 4.130181116 | J189: =IF95IAPWS(A189,B189,"S","Kapa") -> 22639.59563 | K189: =IF95IAPWS(A189,B189,"S","W") -> 1501.519138 | L189: =IF95IAPWS(A189,B189,"S","Mi")*1000000 -> 853.7427413 | M189: =IF95IAPWS(A189,B189,"S","Lam")*1000 -> 609.8106816
A190: 20.00225147 | B190: 0.387405401 | C190: 0.0009947200261 | D190: 1005.308 | E190: 130.8398125 | F190: 110.9431724 | G190: 300 | H190: 4.128217676 | I190: 4.067983471 | J190: 118.4116904 | K190: 1534.925011 | L190: 852.5296768 | M190: 620.6268514
A191: 700.004704 | B191: 0.1326096158 | C191: 0.00084160774 | D191: 1188.202 | E191: 668.5179255 | F191: 79.3885486 | G191: 300 | H191: 3.773219434 | I191: 3.461355802 | J191: 10.13543552 | K191: 2443.579917 | L191: 1309.230314 | M191: 795.6448565
A192: 0.0999679423 | B192: 7.944882714 | C192: 2.298850575 | D192: 0.4349999999 | E192: 2928.559658 | F192: 2698.748296 | G192: 500 | H192: 1.981249317 | I192: 1.508175414 | J192: 1.308240452 | K192: 548.3142527 | L192: 17.2990915 | M192: 36.03173667
A193: 0.999938125 | B193: 6.825027253 | C193: 0.2206531332 | D193: 4.532000001 | E193: 2891.221083 | F193: 2670.581603 | G193: 500 | H193: 2.279452788 | I193: 1.669910245 | J193: 1.300838259 | K193: 535.7390013 | L193: 17.05357744 | M193: 38.47256084
A194: 10.0003858 | B194: 2.566909185 | C194: 0.001193281823 | D194: 838.025 | E194: 977.1816241 | F194: 965.2483455 | G194: 500 | H194: 4.602224481 | I194: 3.221062187 | J194: 135.4333627 | K194: 1271.284409 | L194: 119.8283927 | M194: 646.4085607
A195: 700.000405 | B195: 2.032375092 | C195: 0.0009220294977 | D195: 1084.564 | E195: 1411.113982 | F195: 765.6929603 | G195: 500 | H195: 3.671541091 | I195: 3.07437693 | J195: 9.013939872 | K195: 2412.008765 | L195: =IF95IAPWS(A195,B195,"S","Mi") -> Mimo rozsah! | M195: =IF95IAPWS(A195,B195,"S","Lam") -> Mimo rozsah!
A196: 22.03847559 | B196: 4.320923068 | C196: 0.002793296093 | D196: 357.9999996 | E196: 2028.509694 | F196: 1966.949706 | G196: 647 | H196: 3531.798411 | I196: 6.183157281 | J196: 1.032767271 | K196: 252.1450784 | L196: =IF95IAPWS(A196,B196,"S","Mi")*1000000 -> 46.36366695 | M196: =IF95IAPWS(A196,B196,"S","Lam")*1000 -> 1170.960717
A197: 0.1000625588 | B197: 9.166531938 | C197: 4.14937759 | D197: 0.2410000002 | E197: 3764.975758 | F197: 3349.778419 | G197: 900.0000002 | H197: 2.221644685 | I197: 1.758906571 | J197: 1.262569048 | K197: 724.0271466 | L197: =IF95IAPWS(A197,B197,"S","Mi")*1000000 -> 33.6803318 | M197: =IF95IAPWS(A197,B197,"S","Lam")*1000 -> 82.64672119
A198: 20.00006903 | B198: 6.590702249 | C198: 0.01900598689 | D198: 52.61499998 | E198: 3612.785555 | F198: 3232.664505 | G198: 900 | H198: 2.719285382 | I198: 1.935105255 | J198: 1.283344765 | K198: 698.4456738 | L198: =IF95IAPWS(A198,B198,"S","Mi")*1000000 -> 35.02780507 | M198: =IF95IAPWS(A198,B198,"S","Lam")*1000 -> 100.3519005
A199: 700.000006 | B199: 4.172238016 | C199: 0.001148410198 | D199: 870.769 | E199: 2865.524559 | F199: 2061.637414 | G199: 900.0000002 | H199: 3.580319857 | I199: 2.664223498 | J199: 5.07250083 | K199: 2019.336083 | L199: =IF95IAPWS(A199,B199,"S","Mi") -> Mimo rozsah! | M199: =IF95IAPWS(A199,B199,"S","Lam") -> Mimo rozsah!
A200: Poznámka: | B200: v této tabulce jsou některé vstupní hodnoty (Tlak nebo Entropie) zadány na více míst, než jsou viditelné. Je to proto, že u nich je potřeba zadat ještě další pozice ve zdroji neuvedené, aby vypočtené hodnoty přesně odpovídaly hodnotám ve zdrojových tabulkách.
B201: Ovšem jde jen o optický efekt, protože odchylky způsobené nezadáním neviditelných pozic jsou natolik malé, že se bohatě vejdou do nejistot výpočtu uvedených ve zdroji.
A207: Kontrolní výpočet pro porovnání IF95 a IF97 a příklad použití jejich funkcí - rovnice pro křivku sytosti
A208: Jako vstup jsou použita data pro kontrolu programu z "Revised Release on the IAPWS Formulation 1995 for the Thermodynamic Properties of Ordinary Water Substance for General and Scientific Use", číslo dokumentu IAPWS R6-95(2018) z r. 2018; tabulka 8 na str.15.
B212: Hodnoty vypočtené rovnicemi IF97 : | G212: Vybrané hodnoty z tabulky 8 na str. 15 v IF95 (hodnoty zde jsou vypočtené rovnicemi IF95):
H213: Thermodynamic property values in the two-phase region for selected values of temperature
C215: 275 | D215: 450 | E215: 625 | I215: 275 | J215: 450 | K215: 625
B216: Měrná hmotnost r' [kg/m3] | C216: =1/KrSytIF97(C215,"K",0,"V") -> 999.8883972 | D216: =1/KrSytIF97(D215,"K",0,"V") -> 890.3468005 | E216: =1/KrSytIF97(E215,"K",0,"V") -> 567.0620143 | H216: Měrná hmotnost r' [kg/m3] | I216: =1/IF95KrSyt(I215,"K",0,"V") -> 999.8874061 | J216: =1/IF95KrSyt(J215,"K",0,"V") -> 890.3412498 | K216: =1/IF95KrSyt(K215,"K",0,"V") -> 567.090385
B217: Měrná hmotnost r'' [kg/m3] | C217: =1/KrSytIF97(C215,"K",1,"V") -> 0.005506473097 | D217: =1/KrSytIF97(D215,"K",1,"V") -> 4.811509418 | E217: =1/KrSytIF97(E215,"K",1,"V") -> 118.3084549 | H217: Měrná hmotnost r'' [kg/m3] | I217: =1/IF95KrSyt(I215,"K",1,"V") -> 0.005506649189 | J217: =1/IF95KrSyt(J215,"K",1,"V") -> 4.812003601 | K217: =1/IF95KrSyt(K215,"K",1,"V") -> 118.2902808
B218: Měrná entalpie h' [kJ/kg] | C218: =KrSytIF97(C215,"K",0,"H") -> 7.759557576 | D218: =KrSytIF97(D215,"K",0,"H") -> 749.2933397 | E218: =KrSytIF97(E215,"K",0,"H") -> 1686.273308 | H218: Měrná entalpie h' [kJ/kg] | I218: =IF95KrSyt(I215,"K",0,"H") -> 7.759722016 | J218: =IF95KrSyt(J215,"K",0,"H") -> 749.161585 | K218: =IF95KrSyt(K215,"K",0,"H") -> 1686.26976
B219: Měrná entalpie h'' [kJ/kg] | C219: =KrSytIF97(C215,"K",1,"H") -> 2504.29111 | D219: =KrSytIF97(D215,"K",1,"H") -> 2774.410189 | E219: =KrSytIF97(E215,"K",1,"H") -> 2550.651403 | H219: Měrná entalpie h'' [kJ/kg] | I219: =IF95KrSyt(I215,"K",1,"H") -> 2504.28995 | J219: =IF95KrSyt(J215,"K",1,"H") -> 2774.41078 | K219: =IF95KrSyt(K215,"K",1,"H") -> 2550.716244
B220: Měrná entropie s' [kJ/kgK] | C220: =KrSytIF97(C215,"K",0,"S") -> 0.02830880584 | D220: =KrSytIF97(D215,"K",0,"S") -> 2.108946203 | E220: =KrSytIF97(E215,"K",0,"S") -> 3.801911341 | H220: Měrná entropie s' [kJ/kgK] | I220: =IF95KrSyt(I215,"K",0,"S") -> 0.02830946696 | J220: =IF95KrSyt(J215,"K",0,"S") -> 2.108658447 | K220: =IF95KrSyt(K215,"K",0,"S") -> 3.80194683
B221: Měrná entropie s'' [kJ/kgK] | C221: =KrSytIF97(C215,"K",1,"S") -> 9.106616824 | D221: =KrSytIF97(D215,"K",1,"S") -> 6.609222429 | E221: =KrSytIF97(E215,"K",1,"S") -> 5.184916398 | H221: Měrná entropie s'' [kJ/kgK] | I221: =IF95KrSyt(I215,"K",1,"S") -> 9.106601205 | J221: =IF95KrSyt(J215,"K",1,"S") -> 6.609212213 | K221: =IF95KrSyt(K215,"K",1,"S") -> 5.185061205
D225: Odchylky [%] hodnot vypočtených podle IF97 od hodnot vypočtených podle IF95 :
E226: (jako 100% jsou vzaty hodnoty IF95)
F228: 275 | G228: 450 | H228: 625
E229: Měrná hmotnost r' [%] | F229: =(I216-C216)/I216*100 -> -9.911687202e-05 | G229: -0.0006234406226 | H229: 0.005002852005
E230: Měrná hmotnost r'' [%] | F230: 0.00319781155 | G230: 0.01026979831 | H230: -0.01536401357
E231: Měrná entalpie h' [%] | F231: 0.002119145969 | G231: -0.01758694928 | H231: -0.0002104478187
E232: Měrná entalpie h'' [%] | F232: -4.630690098e-05 | G232: 2.129568059e-05 | H232: 0.002542067303
E233: Měrná entropie s' [%] | F233: 0.002335318267 | G233: -0.013646426 | H233: 0.0009334399262
E234: Měrná entropie s'' [%] | F234: -0.0001715120106 | G234: -0.0001545662845 | H234: 0.002792773925

Sheet IF97 Kontrolní výpočet a návod
A74: Kontrolní výpočet a příklad použití funkcí IF97 - základní rovnice
A75: Pro kontrolu výpočtu s vyjímkou dyn. viskozity a tep. vodivosti jsou použita data z "Revised Release on the IAPWS Industrial Formulation 1997 …" z roku 2007; a to pro oblast 1 z tabulky 5, oblast 2 z tab.15, oblast 3 z tab. 33 a pro oblast 5 z tab. 42.
A76: Výpočet dynamické viskozity a teplotní vodivosti je zde jen pro informaci, kontrolní data jsou v samostatných tabulkách.
B78: Vstupní hodnoty | D78: Výstupní hodnoty
B79: Tlak | C79: Teplota | D79: Měrný objem | E79: Měrná hmotnost | F79: Měrná entalpie | G79: Měrná vnitřní energie | H79: Měrná entropie | I79: Měrná izobarická tepelná kapacita | J79: Měrná izochorická tepelná kapacita | K79: Izoentropický exponent | L79: Rychlost zvuku | M79: Dynamická viskozita | N79: Teplotní vodivost
B80: P [MPa] | C80: T [K] | D80: v [m3/kg] | E80: r [kg/m3] | F80: h [kJ/kg] | G80: u [kJ/kg] | H80: s [kJ/kgK] | I80: cp [kJ/kgK] | J80: cv [kJ/kgK] | K80: kapa [--] | L80: w [m/s] | M80: mi [mPa.s] | N80: lam [mW/Km]
A81: oblast 1 | B81: 3 | C81: 300 | D81: =IF97IAPWS(B81,C81,"K","V") -> 0.00100215168 | E81: =1/IF97IAPWS(B81,C81,"K","V") -> 997.8529401 | F81: =IF97IAPWS(B81,C81,"K","H") -> 115.331273 | G81: =IF97IAPWS(B81,C81,"K","U") -> 112.324818 | H81: =IF97IAPWS(B81,C81,"K","S") -> 0.3922947924 | I81: =IF97IAPWS(B81,C81,"K","Cp") -> 4.173012184 | J81: =IF97IAPWS(B81,C81,"K","Cv") -> 4.121201604 | K81: =(E81*L81^2)/(B81*1000000) -> 756.1322205 | L81: =IF97IAPWS(B81,C81,"K","W") -> 1507.73921 | M81: =IF97IAPWS(B81,C81,"K","Mi")*1000000 -> 853.4928096 | N81: =IF97IAPWS(B81,C81,"K","Lam")*1000 -> 611.1168976
B82: 80 | C82: 300 | D82: 0.000971180894 | E82: 1029.674293 | F82: 184.1428277 | G82: 106.4483562 | H82: 0.3685638524 | I82: 4.01008987 | J82: 3.917366062 | K82: 34.39386509 | L82: 1634.690543 | M82: 855.8561662 | N82: 649.1942541
B83: 3 | C83: 500 | D83: 0.001202418003 | E83: 831.657541 | F83: 975.5422391 | G83: 971.9349851 | H83: 2.58041912 | I83: 4.655806822 | J83: 3.221392229 | K83: 426.7427993 | L83: 1240.713373 | M83: 117.9963414 | N83: 639.7904231
A84: oblast 2 | B84: 0.0035 | C84: 300 | D84: 39.49138664 | E84: 0.0253219774 | F84: 2549.911451 | G84: 2411.691598 | H84: 8.522389667 | I84: 1.913001621 | J84: 1.441326619 | K84: 1.324814558 | L84: 427.9201723 | M84: 9.759669465 | N84: 18.56292096
B85: 0.0035 | C85: 700 | D85: 92.30158982 | E85: 0.01083404958 | F85: 3335.683754 | G85: 3012.628189 | H85: 10.17499958 | I85: 2.081412744 | J85: 1.619783326 | K85: 1.284944289 | L85: 644.2890676 | M85: 25.56267608 | N85: 57.68920719
B86: 30 | C86: 700 | D86: 0.005429466195 | E86: 184.1801688 | F86: 2631.494745 | G86: 2468.610759 | H86: 5.175402982 | I86: 10.35050921 | J86: 2.975538369 | K86: 1.41678269 | L86: 480.3865232 | M86: 31.91950647 | N86: 166.6050179
A87: oblast 3 | B87: 25.58370181 | C87: 650 | D87: 0.002000000001 | E87: 499.9999999 | F87: 1863.43019 | G87: 1812.262786 | H87: 4.054272734 | I87: 13.89357177 | J87: 3.191317873 | K87: 4.925197641 | L87: 502.0055534 | M87: 57.80267002 | N87: 413.8689633
B88: 22.29306426 | C88: 650 | D88: 0.005 | E88: 200 | F88: 2375.124005 | G88: 2263.658684 | H88: 4.85438792 | I88: 44.65793415 | J88: 4.041180759 | K88: 1.319062782 | L88: 383.4445942 | M88: 29.90065576 | N88: 269.6056424
B89: 78.3095639 | C89: 750 | D89: 0.002 | E89: 499.9999999 | F89: 2258.688446 | G89: 2102.069318 | H89: 4.469719056 | I89: 6.341653596 | J89: 2.717016771 | K89: 3.694685793 | L89: 760.6960408 | M89: 61.93150904 | N89: 384.429064
A90: oblast 5 | B90: 0.5 | C90: 1500 | D90: 1.384550899 | E90: 0.7222558599 | F90: 5219.768551 | G90: 4527.493102 | H90: 9.654088753 | I90: 2.616094454 | J90: 2.153377835 | K90: 1.214855999 | L90: 917.0686903 | M90: --- | N90: ---
B91: 30 | C91: 1500 | D91: 0.02307612995 | E91: 43.33482271 | F91: 5167.23514 | G91: 4474.951242 | H91: 7.729701326 | I91: 2.727243172 | J91: 2.192748294 | K91: 1.245444815 | L91: 928.5480018 | M91: --- | N91: ---
B92: 30 | C92: 2000 | D92: 0.03113852187 | E92: 32.11456228 | F92: 6571.226039 | G92: 5637.070383 | H92: 8.536405231 | I92: 2.885698819 | J92: 2.395894362 | K92: 1.219580053 | L92: 1067.369479 | M92: --- | N92: ---
D94: Kontrolní výpočet a příklad použití funkcí IF97 - základní rovnice v oblasti 4, křivka sytosti
D95: Pro kontrolu výpočtu jsou použita data z "Release on the IAPWS Industrial Formulation 1997 …" z tabulek 35 a 36.
F97: Vstupní hodnoty | G97: Výstupní hodnoty | H97: Vstupní hodnoty | I97: Výstupní hodnoty
F98: Teplota | G98: Tlak sytosti | H98: Tlak | I98: Teplota sytosti
F99: T [K] | G99: Ps [MPa] | H99: P [MPa] | I99: Ts [K]
E100: oblast 4 | F100: 300 | G100: =PsytIF97(F100-273.15) -> 0.003536589413 | H100: 0.1 | I100: =TsytIF97(H100)+273.15 -> 372.7559186
F101: 500 | G101: =PsytIF97(F101-273.15) -> 2.638897756 | H101: 1 | I101: =TsytIF97(H101)+273.15 -> 453.0356324
F102: 600 | G102: =PsytIF97(F102-273.15) -> 12.34431458 | H102: 10 | I102: =TsytIF97(H102)+273.15 -> 584.149488
B104: Kontrolní výpočet a příklad použití funkcí pro dynamickou viskozitu | H104: Kontrolní výpočet a příklad použití funkcí pro teplotní vodivost
B105: Pro kontrolu jsou použita data odpovídající rozsahu rovnic pro průmyslové použití z literatury uvedené v návodu, tabulky 4. | H105: Pro kontrolu výpočtu jsou použita data z literatury uvedené v návodu, z tabulek 7, 8 a 9.
C107: Vstupní hodnoty | E107: Výstupní hodnoty | I107: Vstupní hodnoty | K107: Výstupní hodnoty
C108: Tlak | D108: Teplota | E108: Dynamická viskozita | F108: Měrná hmotnost | I108: Tlak | J108: Teplota | K108: Teplotní vodivost | L108: Měrná hmotnost
C109: P [MPa] | D109: T [K] | E109: mi [mPa.s] | F109: r [kg/m3] | I109: P [MPa] | J109: T [K] | K109: lam [mW/Km] | L109: r [kg/m3]
C110: 2.2201662 | D110: 298.15 | E110: =IF97IAPWS(C110,D110,"K","Mi")*1000000 -> 889.7351002 | F110: =1/IF97IAPWS(C110,D110,"K","V") -> 998 | H110: oblast 1 | I110: 20 | J110: 620 | K110: =IF97IAPWS(I110,J110,"K","Lam")*1000 -> 481.4851951 | L110: ---
C111: 0.1969094056 | D111: 433.15 | E111: =IF97IAPWS(C111,D111,"K","Mi")*1000000 -> 14.53832449 | F111: =1/IF97IAPWS(C111,D111,"K","V") -> 1 | I111: 50 | J111: 620 | K111: 545.0389397 | L111: ---
C112: 0.402230487 | D112: 873.15 | E112: =IF97IAPWS(C112,D112,"K","Mi")*1000000 -> 32.61928697 | F112: =1/IF97IAPWS(C112,D112,"K","V") -> 1 | H112: oblast 2 | I112: 0.3 | J112: 650 | K112: 52.23110244 | L112: ---
C113: 33.6075594 | D113: 873.15 | E113: =IF97IAPWS(C113,D113,"K","Mi")*1000000 -> 35.80226172 | F113: =1/IF97IAPWS(C113,D113,"K","V") -> 100 | I113: 50 | J113: 800 | K113: 177.7099135 | L113: ---
H114: oblast 3 | I114: 21.98406271 | J114: 647.35 | K114: 366.8794111 | L114: =1/IF97IAPWS(I114,J114,"K","V") -> 222
I115: 22.13216002 | J115: 647.35 | K115: 1241.824149 | L115: =1/IF97IAPWS(I115,J115,"K","V") -> 321.9999996
A118: Kontrolní výpočet a příklad použití funkcí IF97 - výpočet iterací ze základních rovnic z P a H
A119: Pro kontrolu výpočtu s vyjímkou dyn. viskozity a tep. vodivosti jsou použita data z "Revised Release on the IAPWS Industrial Formulation 1997 …" z roku 2007; a to pro oblast 1 z tabulky 5, oblast 2 z tab.15, oblast 3 z tab. 33 a pro oblast 5 z tab. 42.
A120: Výpočet dynamické viskozity a teplotní vodivosti je zde jen pro informaci, kontrolní data jsou v samostatných tabulkách.
B122: Vstupní hodnoty | D122: Výstupní hodnoty
B123: Tlak | C123: Měrná entalpie | D123: Měrný objem | E123: Měrná hmotnost | F123: Teplota | G123: Měrná vnitřní energie | H123: Měrná entropie | I123: Měrná izobarická tepelná kapacita | J123: Měrná izochorická tepelná kapacita | K123: Izoentropický exponent | L123: Rychlost zvuku | M123: Dynamická viskozita | N123: Teplotní vodivost
B124: P [MPa] | C124: h [kJ/kg] | D124: v [m3/kg] | E124: r [kg/m3] | F124: [K] | G124: u [kJ/kg] | H124: s [kJ/kgK] | I124: cp [kJ/kgK] | J124: cv [kJ/kgK] | K124: kapa [--] | L124: w [m/s] | M124: mi [mPa.s] | N124: lam [mW/Km]
A125: oblast 1 | B125: 3 | C125: 115.331273 | D125: =IF97IAPWS(B125,C125,"H","V") -> 0.00100215168 | E125: =1/IF97IAPWS(B125,C125,"H","V") -> 997.8529401 | F125: =IF97IAPWS(B125,C125,"H","T")+273.15 -> 300 | G125: =IF97IAPWS(B125,C125,"H","U") -> 112.324818 | H125: =IF97IAPWS(B125,C125,"H","S") -> 0.3922947924 | I125: =IF97IAPWS(B125,C125,"H","Cp") -> 4.173012184 | J125: =IF97IAPWS(B125,C125,"H","Cv") -> 4.121201604 | K125: =(E125*L125^2)/(B125*1000000) -> 756.1322205 | L125: =IF97IAPWS(B125,C125,"H","W") -> 1507.73921 | M125: =IF97IAPWS(B125,C125,"H","Mi")*1000000 -> 853.4928096 | N125: =IF97IAPWS(B125,C125,"H","Lam")*1000 -> 611.1168976
B126: 80 | C126: 184.1428277 | D126: 0.000971180894 | E126: 1029.674293 | F126: 300 | G126: 106.4483563 | H126: 0.3685638527 | I126: 4.01008987 | J126: 3.917366062 | K126: 34.39386509 | L126: 1634.690543 | M126: 855.8561658 | N126: 649.1942541
B127: 3 | C127: 975.5422391 | D127: 0.001202418003 | E127: 831.657541 | F127: 500 | G127: 971.9349851 | H127: 2.58041912 | I127: 4.655806822 | J127: 3.221392229 | K127: 426.7427993 | L127: 1240.713373 | M127: 117.9963414 | N127: 639.7904231
A128: oblast 2 | B128: 0.0035 | C128: 2549.911451 | D128: 39.49138664 | E128: 0.0253219774 | F128: 300 | G128: 2411.691598 | H128: 8.522389667 | I128: 1.913001621 | J128: 1.441326619 | K128: 1.324814558 | L128: 427.9201723 | M128: 9.759669466 | N128: 18.56292096
B129: 0.0035 | C129: 3335.683754 | D129: 92.30158981 | E129: 0.01083404958 | F129: 700 | G129: 3012.628189 | H129: 10.17499958 | I129: 2.081412744 | J129: 1.619783326 | K129: 1.284944289 | L129: 644.2890676 | M129: 25.56267608 | N129: 57.68920719
B130: 30 | C130: 2631.494745 | D130: 0.005429466195 | E130: 184.1801688 | F130: 700 | G130: 2468.610759 | H130: 5.175402982 | I130: 10.35050921 | J130: 2.975538369 | K130: 1.41678269 | L130: 480.3865232 | M130: 31.91950647 | N130: 166.6050179
A131: oblast 3 | B131: 25.58370181 | C131: 1863.43019 | D131: 0.002000000001 | E131: 499.9999998 | F131: 650 | G131: 1812.262786 | H131: 4.054272734 | I131: 13.89357177 | J131: 3.191317873 | K131: 4.925197641 | L131: 502.0055534 | M131: 57.80267002 | N131: 413.8689633
B132: 22.29306426 | C132: 2375.124005 | D132: 0.005000000001 | E132: 200 | F132: 650 | G132: 2263.658684 | H132: 4.85438792 | I132: 44.65793413 | J132: 4.041180759 | K132: 1.319062782 | L132: 383.4445942 | M132: 29.90065576 | N132: 269.6056424
B133: 78.3095639 | C133: 2258.688446 | D133: 0.002 | E133: 499.9999999 | F133: 750 | G133: 2102.069318 | H133: 4.469719056 | I133: 6.341653596 | J133: 2.717016771 | K133: 3.694685793 | L133: 760.6960408 | M133: 61.93150904 | N133: 384.429064
A134: oblast 5 | B134: 0.5 | C134: 5219.768551 | D134: 1.384550899 | E134: 0.7222558599 | F134: 1500 | G134: 4527.493102 | H134: 9.654088753 | I134: 2.616094454 | J134: 2.153377835 | K134: 1.214855999 | L134: 917.0686903 | M134: --- | N134: ---
B135: 30 | C135: 5167.23514 | D135: 0.02307612995 | E135: 43.33482271 | F135: 1500 | G135: 4474.951242 | H135: 7.729701326 | I135: 2.727243172 | J135: 2.192748294 | K135: 1.245444815 | L135: 928.5480018 | M135: --- | N135: ---
B136: 30 | C136: 6571.226039 | D136: 0.03113852187 | E136: 32.11456228 | F136: 2000 | G136: 5637.070383 | H136: 8.536405231 | I136: 2.885698819 | J136: 2.395894362 | K136: 1.219580053 | L136: 1067.369479 | M136: --- | N136: ---
A139: Kontrolní výpočet a příklad použití funkcí IF97 - výpočet iterací ze základních rovnic z P a S
A140: Pro kontrolu výpočtu s vyjímkou dyn. viskozity a tep. vodivosti jsou použita data z "Revised Release on the IAPWS Industrial Formulation 1997 …" z roku 2007; a to pro oblast 1 z tabulky 5, pro oblast 2 z tab.15, pro oblast 3 z tab. 33 a pro oblast 5 z tabulky 42.
A141: Výpočet dynamické viskozity a teplotní vodivosti je zde jen pro informaci, kontrolní data jsou v samostatných tabulkách.
B143: Vstupní hodnoty | D143: Výstupní hodnoty
B144: Tlak | C144: Měrná entropie | D144: Měrný objem | E144: Měrná hmotnost | F144: Měrná entalpie | G144: Měrná vnitřní energie | H144: Teplota | I144: Měrná izobarická tepelná kapacita | J144: Měrná izochorická tepelná kapacita | K144: Izoentropický exponent | L144: Rychlost zvuku | M144: Dynamická viskozita | N144: Teplotní vodivost
B145: P [MPa] | C145: s [kJ/kgK] | D145: v [m3/kg] | E145: r [kg/m3] | F145: h [kJ/kg] | G145: u [kJ/kg] | H145: [K] | I145: cp [kJ/kgK] | J145: cv [kJ/kgK] | K145: kapa [--] | L145: w [m/s] | M145: mi [mPa.s] | N145: lam [mW/Km]
A146: oblast 1 | B146: 3 | C146: 0.3922947924 | D146: =IF97IAPWS(B146,C146,"S","V") -> 0.00100215168 | E146: =1/IF97IAPWS(B146,C146,"S","V") -> 997.8529401 | F146: =IF97IAPWS(B146,C146,"S","H") -> 115.3312731 | G146: =IF97IAPWS(B146,C146,"S","U") -> 112.3248181 | H146: =IF97IAPWS(B146,C146,"S","T")+273.15 -> 300 | I146: =IF97IAPWS(B146,C146,"S","Cp") -> 4.173012184 | J146: =IF97IAPWS(B146,C146,"S","Cv") -> 4.121201603 | K146: =(E146*L146^2)/(B146*1000000) -> 756.1322205 | L146: =IF97IAPWS(B146,C146,"S","W") -> 1507.73921 | M146: =IF97IAPWS(B146,C146,"S","Mi")*1000000 -> 853.4928091 | N146: =IF97IAPWS(B146,C146,"S","Lam")*1000 -> 611.1168977
B147: 80 | C147: 0.3685638524 | D147: 0.000971180894 | E147: 1029.674293 | F147: 184.1428278 | G147: 106.4483563 | H147: 300 | I147: 4.01008987 | J147: 3.917366062 | K147: 34.39386509 | L147: 1634.690543 | M147: 855.8561658 | N147: 649.1942541
B148: 3 | C148: 2.58041912 | D148: 0.001202418003 | E148: 831.657541 | F148: 975.5422392 | G148: 971.9349852 | H148: 500 | I148: 4.655806822 | J148: 3.221392229 | K148: 426.7427993 | L148: 1240.713373 | M148: 117.9963414 | N148: 639.7904231
A149: oblast 2 | B149: 0.0035 | C149: 8.522389667 | D149: 39.49138664 | E149: 0.0253219774 | F149: 2549.911451 | G149: 2411.691598 | H149: 300 | I149: 1.913001621 | J149: 1.441326619 | K149: 1.324814558 | L149: 427.9201723 | M149: 9.759669466 | N149: 18.56292096
B150: 0.0035 | C150: 10.17499958 | D150: 92.30158982 | E150: 0.01083404958 | F150: 3335.683754 | G150: 3012.628189 | H150: 700 | I150: 2.081412744 | J150: 1.619783326 | K150: 1.284944289 | L150: 644.2890676 | M150: 25.56267608 | N150: 57.68920719
B151: 30 | C151: 5.175402982 | D151: 0.005429466196 | E151: 184.1801687 | F151: 2631.494745 | G151: 2468.610759 | H151: 700 | I151: 10.3505092 | J151: 2.975538368 | K151: 1.41678269 | L151: 480.3865232 | M151: 31.91950647 | N151: 166.6050178
A152: oblast 3 | B152: 25.58370181 | C152: 4.054272734 | D152: 0.002000000001 | E152: 499.9999997 | F152: 1863.43019 | G152: 1812.262787 | H152: 650 | I152: 13.89357179 | J152: 3.191317873 | K152: 4.925197633 | L152: 502.0055531 | M152: 57.80267 | N152: 413.8689632
B153: 22.29306426 | C153: 4.85438792 | D153: 0.005000000001 | E153: 200 | F153: 2375.124006 | G153: 2263.658684 | H153: 650 | I153: 44.65793413 | J153: 4.041180759 | K153: 1.319062782 | L153: 383.4445942 | M153: 29.90065576 | N153: 269.6056424
B154: 78.3095639 | C154: 4.469719056 | D154: 0.002 | E154: 499.9999999 | F154: 2258.688446 | G154: 2102.069318 | H154: 750 | I154: 6.341653596 | J154: 2.717016771 | K154: 3.694685793 | L154: 760.6960408 | M154: 61.93150904 | N154: 384.429064
A155: oblast 5 | B155: 0.5 | C155: 9.654088753 | D155: 1.384550899 | E155: 0.7222558597 | F155: 5219.768552 | G155: 4527.493103 | H155: 1500 | I155: 2.616094454 | J155: 2.153377835 | K155: 1.214855999 | L155: 917.0686904 | M155: --- | N155: ---
B156: 30 | C156: 7.729701326 | D156: 0.02307612995 | E156: 43.33482269 | F156: 5167.235141 | G156: 4474.951243 | H156: 1500 | I156: 2.727243172 | J156: 2.192748294 | K156: 1.245444815 | L156: 928.5480019 | M156: --- | N156: ---
B157: 30 | C157: 8.536405231 | D157: 0.03113852186 | E157: 32.11456229 | F157: 6571.226038 | G157: 5637.070382 | H157: 2000 | I157: 2.885698819 | J157: 2.395894362 | K157: 1.219580053 | L157: 1067.369479 | M157: --- | N157: ---
A161: Kontrolní výpočet a příklad použití funkcí IF97 - výpočet ze zpětných rovnic z P a H
A162: Pro kontrolu výpočtu s vyjímkou dyn. viskozity a tep. vodivosti jsou použita data z "Revised Release on the IAPWS Industrial Formulation 1997 …" z roku 2007; a to pro oblast 1 z tabulky 7, pro oblast 2 z tab. 24
A163: a pro oblast 3 jsou použita data z "Revised Supplementary Release on Backward Equations …" z roku 2004; z tabulky 5.
A164: Výpočet dynamické viskozity a teplotní vodivosti je zde jen pro informaci, kontrolní data jsou v samostatných tabulkách.
B166: Vstupní hodnoty | D166: Výstupní hodnoty
B167: Tlak | C167: Měrná entalpie | D167: Měrný objem | E167: Měrná hmotnost | F167: Teplota | G167: Měrná vnitřní energie | H167: Měrná entropie | I167: Měrná izobarická tepelná kapacita | J167: Měrná izochorická tepelná kapacita | K167: Izoentropický exponent | L167: Rychlost zvuku | M167: Dynamická viskozita | N167: Teplotní vodivost
B168: P [MPa] | C168: h [kJ/kg] | D168: v [m3/kg] | E168: r [kg/m3] | F168: [K] | G168: u [kJ/kg] | H168: s [kJ/kgK] | I168: cp [kJ/kgK] | J168: cv [kJ/kgK] | K168: kapa [--] | L168: w [m/s] | M168: mi [mPa.s] | N168: lam [mW/Km]
A169: oblast 1 | B169: 3 | C169: 500 | D169: =IF97IAPWS(B169,C169,"HZ","V") -> 0.001057547686 | E169: =1/IF97IAPWS(B169,C169,"HZ","V") -> 945.5838378 | F169: =IF97IAPWS(B169,C169,"HZ","T")+273.15 -> 391.7985088 | G169: =IF97IAPWS(B169,C169,"HZ","U") -> 496.8549711 | H169: =IF97IAPWS(B169,C169,"HZ","S") -> 1.510684308 | I169: =IF97IAPWS(B169,C169,"HZ","Cp") -> 4.237007836 | J169: =IF97IAPWS(B169,C169,"HZ","Cv") -> 3.671250705 | K169: =(E169*L169^2)/(B169*1000000) -> 737.1598205 | L169: =IF97IAPWS(B169,C169,"HZ","W") -> 1529.295586 | M169: =IF97IAPWS(B169,C169,"HZ","Mi")*1000000 -> 235.6071587 | N169: =IF97IAPWS(B169,C169,"HZ","Lam")*1000 -> 683.7492612
B170: 80 | C170: 500 | D170: 0.001011137651 | E170: 988.9850295 | F170: 378.1086259 | G170: 419.0456733 | H170: 1.303851203 | I170: 4.072269548 | J170: 3.640063364 | K170: 35.60265166 | L170: 1697.036985 | M170: 288.3972881 | N170: 722.2778398
B171: 80 | C171: 1500 | D171: 0.00132152054 | E171: 756.7040916 | F171: 611.0412294 | G171: 1394.198975 | H171: 3.35294085 | I171: 4.730806167 | J171: 2.914935851 | K171: 13.32508741 | L171: 1186.907805 | M171: 94.59314337 | N171: 599.2189765
A172: oblast 2a | B172: 0.001 | C172: 3000 | D172: 246.6470893 | E172: 0.004054375841 | F172: 534.4332414 | G172: 2753.34553 | H172: 10.20662417 | I172: 1.976049449 | J172: 1.514440266 | K172: 1.304764161 | L172: 567.2885355 | M172: 18.73233297 | N172: 39.28023844
B173: 3 | C173: 3000 | D173: 0.08161031539 | E173: 12.25335296 | F173: 575.3733702 | G173: 2755.158427 | H173: 6.5510321 | I173: 2.530438644 | J173: 1.793577996 | K173: 1.290223922 | L173: 562.0380268 | M173: 20.08641333 | N173: 49.3350038
B174: 3 | C174: 4000 | D174: 0.1543580687 | E174: 6.478443324 | F174: 1010.775766 | G174: 3536.92063 | H174: 7.847381391 | I174: 2.33981043 | J174: 1.852987435 | K174: 1.253428555 | L174: 761.8598515 | M174: 38.16902429 | N174: 99.49439414
A175: oblast 2b | B175: 5 | C175: 3500 | D175: 0.07147513819 | E175: 13.99087886 | F175: 801.2991019 | G175: 3142.630943 | H175: 7.061055918 | I175: 2.324079433 | J175: 1.760568161 | K175: 1.274595802 | L175: 674.91448 | M175: 29.8774779 | N175: 74.03296182
B176: 5 | C176: 4000 | D176: 0.09259439654 | E176: 10.79978959 | F176: 1015.315825 | G176: 3537.040286 | H176: 7.613876362 | I176: 2.370171292 | J176: 1.866355554 | K176: 1.254661336 | L176: 762.1502781 | M176: 38.44758154 | N176: 101.6705101
B177: 25 | C177: 3500 | D177: 0.01419660811 | E177: 70.43936076 | F177: 875.2790537 | G177: 3145.08535 | H177: 6.371046141 | I177: 2.959675777 | J177: 1.998800946 | K177: 1.29633866 | L177: 678.2995638 | M177: 34.63126229 | N177: 103.9313154
A178: oblast 2c | B178: 40 | C178: 2700 | D178: 0.004563579796 | E178: 219.1262221 | F178: 743.056411 | G178: 2517.381668 | H178: 5.201542353 | I178: 8.157630511 | J178: 2.757278793 | K178: 1.531947368 | L178: 528.8161896 | M178: 36.62438319 | N178: 182.0424742
B179: 60 | C179: 2700 | D179: 0.003319696765 | E179: 301.2323326 | F179: 791.1370665 | G179: 2500.971713 | H179: 5.101533264 | I179: 6.861024356 | J179: 2.635159002 | K179: 1.854733845 | L179: 607.8069075 | M179: 45.20223755 | N179: 236.683321
B180: 60 | C180: 3200 | D180: 0.004987136917 | E180: 200.5158504 | F180: 882.7568596 | G180: 2900.715281 | H180: 5.701795399 | I180: 4.397492295 | J180: 2.312566327 | K180: 1.502122349 | L180: 670.430749 | M180: 41.86733718 | N180: 174.0353412
A181: oblast 3a | B181: 20 | C181: 1700 | D181: 0.001749908081 | E181: 571.4585873 | F181: 629.3083892 | G181: 1665.030225 | H181: 3.815184159 | I181: 9.620039251 | J181: 3.109637845 | K181: 10.14607097 | L181: 595.8975011 | M181: 65.6076464 | N181: 455.8989944
B182: 50 | C182: 2000 | D182: 0.001908077081 | E182: 524.087842 | F182: 690.5718338 | G182: 1904.60188 | H182: 4.187107342 | I182: 7.701986895 | J182: 2.88196158 | K182: 4.805315282 | L182: 677.0861082 | M182: 62.29304228 | N182: 408.519806
B183: 100 | C183: 2100 | D183: 0.001676186292 | E183: 596.5923984 | F183: 733.6163014 | G183: 1932.314404 | H183: 4.202806142 | I183: 5.339897086 | J183: 2.713438773 | K183: 5.196388928 | L183: 933.2800162 | M183: 72.68041485 | N183: 461.8389728
A184: oblast 3b | B184: 20 | C184: 2500 | D184: 0.006670922743 | E184: 149.9042994 | F184: 641.8418053 | G184: 2366.649827 | H184: 5.068426407 | I184: 21.96446482 | J184: 3.752801115 | K184: 1.277172327 | L184: 412.7933605 | M184: 26.47547169 | N184: 181.6603634
B185: 50 | C185: 2400 | D185: 0.002801106004 | E185: 357.0018409 | F185: 735.1848618 | G185: 2259.91006 | H185: 4.747659616 | I185: 9.528412139 | J185: 2.86602013 | K185: 2.200952055 | L185: 555.2071693 | M185: 47.36909181 | N185: 285.3261489
B186: 100 | C186: 2700 | D186: 0.002404154749 | E186: 415.9466026 | F186: 842.0460876 | G186: 2459.546209 | H186: 4.965443667 | I186: 5.436702342 | J186: 2.551934681 | K186: 2.500922826 | L186: 775.4099231 | M186: 56.90646643 | N186: 322.8064162
A191: Kontrolní výpočet a příklad použití funkcí IF97 - výpočet ze zpětných rovnic z P a S
A192: Pro kontrolu výpočtu s vyjímkou dyn. viskozity a tep. vodivosti jsou použita data z "Revised Release on the IAPWS Industrial Formulation 1997 …" z roku 2007; a to pro oblast 1 z tabulky 9, pro oblast 2 z tab. 29
A193: a pro oblast 3 jsou použita data z "Revised Supplementary Release on Backward Equations …" z roku 2004; z tabulky 12.
A194: Výpočet dynamické viskozity a teplotní vodivosti je zde jen pro informaci, kontrolní data jsou v samostatných tabulkách.
B196: Vstupní hodnoty | D196: Výstupní hodnoty
B197: Tlak | C197: Měrná entropie | D197: Měrný objem | E197: Měrná hmotnost | F197: Měrná entalpie | G197: Měrná vnitřní energie | H197: Teplota | I197: Měrná izobarická tepelná kapacita | J197: Měrná izochorická tepelná kapacita | K197: Izoentropický exponent | L197: Rychlost zvuku | M197: Dynamická viskozita | N197: Teplotní vodivost
B198: P [MPa] | C198: s [kJ/kgK] | D198: v [m3/kg] | E198: r [kg/m3] | F198: h [kJ/kg] | G198: u [kJ/kg] | H198: [K] | I198: cp [kJ/kgK] | J198: cv [kJ/kgK] | K198: kapa [--] | L198: w [m/s] | M198: mi [mPa.s] | N198: lam [mW/Km]
A199: oblast 1 | B199: 3 | C199: 0.5 | D199: =IF97IAPWS(B199,C199,"SZ","V") -> 0.001004603494 | E199: =1/IF97IAPWS(B199,C199,"SZ","V") -> 995.4176006 | F199: =IF97IAPWS(B199,C199,"SZ","H") -> 148.0504058 | G199: =IF97IAPWS(B199,C199,"SZ","U") -> 145.0365953 | H199: =IF97IAPWS(B199,C199,"SZ","T")+273.15 -> 307.8422576 | I199: =IF97IAPWS(B199,C199,"SZ","Cp") -> 4.17157882 | J199: =IF97IAPWS(B199,C199,"SZ","Cv") -> 4.088211122 | K199: =(E199*L199^2)/(B199*1000000) -> 772.678586 | L199: =IF97IAPWS(B199,C199,"SZ","W") -> 1526.010099 | M199: =IF97IAPWS(B199,C199,"SZ","Mi")*1000000 -> 723.7496316 | N199: =IF97IAPWS(B199,C199,"SZ","Lam")*1000 -> 622.8274549
B200: 80 | C200: 0.5 | D200: 0.0009747716947 | E200: 1025.881245 | F200: 224.2211912 | G200: 146.2394557 | H200: 309.9797848 | I200: 4.021234109 | J200: 3.892839241 | K200: 35.2214387 | L200: 1657.295664 | M200: 705.764023 | N200: 662.7755102
B201: 80 | C201: 3 | D201: 0.00122631854 | E201: 815.4488146 | F201: 1292.22251 | G201: 1194.117026 | H201: 565.8999088 | I201: 4.483474493 | J201: 3.012636136 | K201: 17.90063723 | L201: 1325.198349 | M201: 107.8778258 | N201: 650.4612168
A202: oblast 2a | B202: 0.1 | C202: 7.5 | D202: 1.823886055 | E202: 0.5482798649 | F202: 2729.427985 | G202: 2547.039379 | H202: 399.5170967 | I202: 2.008733798 | J202: 1.508869072 | K202: 1.316409209 | L202: 489.9979999 | M202: 13.25864811 | N202: 26.783572
B203: 0.1 | C203: 8 | D203: 2.364113326 | E203: 0.4229915669 | F203: 2956.604892 | G203: 2720.19356 | H203: 514.1270814 | I203: 1.985749676 | J203: 1.514161617 | K203: 1.306604572 | L203: 555.7842459 | M203: 17.87827675 | N203: 37.43274732
B204: 2.5 | C204: 8 | D204: 0.1909408794 | E204: 5.237223181 | F204: 4070.734637 | G204: 3593.382439 | H204: 1039.849173 | I204: 2.349797062 | J204: 1.869203299 | K204: 1.250384384 | L204: 772.5760383 | M204: 39.26796937 | N204: 103.0863945
A205: oblast 2b | B205: 8 | C205: 6 | D205: 0.02766645057 | E205: 36.14486063 | F205: 2907.394091 | G205: 2686.062486 | H205: 600.4840398 | I205: 3.839760045 | J205: 2.275792072 | K205: 1.27265391 | L205: 530.7339558 | M205: 21.01120112 | N205: 63.59944437
B206: 8 | C206: 7.5 | D206: 0.06050381671 | E206: 16.52788294 | F206: 4104.107103 | G206: 3620.076569 | H206: 1064.955564 | I206: 2.429105745 | J206: 1.908755036 | K206: 1.253311925 | L206: 778.8717737 | M206: 40.5194263 | N206: 111.0302755
B207: 90 | C207: 6 | D207: 0.004543498399 | E207: 220.0947183 | F207: 3628.080257 | G207: 3219.165401 | H207: 1038.011259 | I207: 3.633429806 | J207: 2.229118266 | K207: 1.538752552 | L207: 793.2331171 | M207: 48.97473426 | N207: 216.5010751
A208: oblast 2c | B208: 20 | C208: 5.75 | D208: 0.01146729677 | E208: 87.20451035 | F208: 2952.107423 | G208: 2722.761488 | H208: 697.9928495 | I208: 4.768886378 | J208: 2.417161861 | K208: 1.295891952 | L208: 545.1674531 | M208: 26.97771794 | N208: 94.37281173
B209: 80 | C209: 5.25 | D209: 0.003146198317 | E209: 317.843918 | F209: 2886.725943 | G209: 2635.030078 | H209: 854.011484 | I209: 5.456137405 | J209: 2.487945297 | K209: 1.918818998 | L209: 694.9523784 | M209: 49.1058377 | N209: 250.9823797
B210: 80 | C210: 5.75 | D210: 0.004261047407 | E210: 234.6840822 | F210: 3335.96132 | G210: 2995.077527 | H210: 949.0179976 | I210: 4.128835188 | J210: 2.296732639 | K210: 1.584983807 | L210: 735.0478156 | M210: 46.70257941 | N210: 206.9856513
A211: oblast 3a | B211: 20 | C211: 3.8 | D211: 0.001733666188 | E211: 576.8123107 | F211: 1690.458785 | G211: 1655.785461 | H211: 628.2959869 | I211: 9.292083902 | J211: 3.097384372 | K211: 10.67133112 | L211: 608.2848995 | M211: 66.26519354 | N211: 458.9272763
B212: 50 | C212: 3.6 | D212: 0.001469626946 | E212: 680.4447909 | F212: 1611.654196 | G212: 1538.172848 | H212: 629.7158726 | I212: 5.492719551 | J212: 2.90335633 | K212: 12.30972751 | L212: 951.07064 | M212: 81.27936942 | N212: 529.4866569
B213: 100 | C213: 4 | D213: 0.001555812217 | E213: 642.751091 | F213: 1953.865992 | G213: 1798.28477 | H213: 705.6880237 | I213: 5.119677075 | J213: 2.746853448 | K213: 6.469168712 | L213: 1003.235352 | M213: 78.00511705 | N213: 501.0345803
A214: oblast 3b | B214: 20 | C214: 5 | D214: 0.006260564543 | E214: 159.7300041 | F214: 2456.068219 | G214: 2330.856928 | H214: 640.1176443 | I214: 30.24485417 | J214: 3.977844108 | K214: 1.270135712 | L214: 398.7923421 | M214: 26.87623388 | N214: 209.9584791
B215: 50 | C215: 4.5 | D215: 0.002332892117 | E215: 428.6524837 | F215: 2220.285494 | G215: 2103.640889 | H215: 716.3687517 | I215: 9.326084683 | J215: 2.898808496 | K215: 2.932480931 | L215: 584.857318 | M215: 53.25159284 | N215: 339.4025102
B216: 100 | C216: 5 | D216: 0.002449555612 | E216: 408.2373125 | F216: 2729.143994 | G216: 2484.188432 | H216: 847.4332825 | I216: 5.396740025 | J216: 2.542649636 | K216: 2.436798676 | L216: 772.5978172 | M216: 56.39857614 | N216: 317.4275287
A220: Kontrolní výpočet a příklad použití funkcí IF97 - rovnice pro křivku sytosti
A221: Jako vstup jsou použita data pro kontrolu programu z "Revised Release on the IAPWS Formulation 1995 for the Thermodynamic Properties of Ordinary Water Substance for General and Scientific Use" z r. 2009; tabulka 8 na str.14.
A222: Tato data byla použita proto, že v IF97 taková data nejsou, a s tím, že hodnoty vypočtené podle rovnic IF97 se nebudou přesně shodovat s hodnotami IF95.
B226: Hodnoty vypočtené rovnicemi IF97 : | H226: Původní tabulka 8 na str. 14 v IF95 :
H227: Thermodynamic property values in the two-phase region for selected values of temperature
C229: 275 | D229: 450 | E229: 625 | I229: 275 | J229: 450 | K229: 625
B230: Měrná hmotnost r' [kg/m3] | C230: =1/KrSytIF97(C229,"K",0,"V") -> 999.8883972 | D230: =1/KrSytIF97(D229,"K",0,"V") -> 890.3468005 | E230: =1/KrSytIF97(E229,"K",0,"V") -> 567.0620143 | H230: Měrná hmotnost r' [kg/m3] | I230: 999.887406 | J230: 890.34125 | K230: 567.090385
B231: Měrná hmotnost r'' [kg/m3] | C231: =1/KrSytIF97(C229,"K",1,"V") -> 0.005506473097 | D231: =1/KrSytIF97(D229,"K",1,"V") -> 4.811509418 | E231: =1/KrSytIF97(E229,"K",1,"V") -> 118.3084549 | H231: Měrná hmotnost r'' [kg/m3] | I231: 0.00550664919 | J231: 4.8120036 | K231: 118.29028
B232: Měrná entalpie h' [kJ/kg] | C232: =KrSytIF97(C229,"K",0,"H") -> 7.759557576 | D232: =KrSytIF97(D229,"K",0,"H") -> 749.2933397 | E232: =KrSytIF97(E229,"K",0,"H") -> 1686.273308 | H232: Měrná entalpie h' [kJ/kg] | I232: 7.75972202 | J232: 749.161585 | K232: 1686.26976
B233: Měrná entalpie h'' [kJ/kg] | C233: =KrSytIF97(C229,"K",1,"H") -> 2504.29111 | D233: =KrSytIF97(D229,"K",1,"H") -> 2774.410189 | E233: =KrSytIF97(E229,"K",1,"H") -> 2550.651403 | H233: Měrná entalpie h'' [kJ/kg] | I233: 2504.28995 | J233: 2774.41078 | K233: 2550.71625
B234: Měrná entropie s' [kJ/kgK] | C234: =KrSytIF97(C229,"K",0,"S") -> 0.02830880584 | D234: =KrSytIF97(D229,"K",0,"S") -> 2.108946203 | E234: =KrSytIF97(E229,"K",0,"S") -> 3.801911341 | H234: Měrná entropie s' [kJ/kgK] | I234: 0.028309467 | J234: 2.10865845 | K234: 3.80194683
B235: Měrná entropie s'' [kJ/kgK] | C235: =KrSytIF97(C229,"K",1,"S") -> 9.106616824 | D235: =KrSytIF97(D229,"K",1,"S") -> 6.609222429 | E235: =KrSytIF97(E229,"K",1,"S") -> 5.184916398 | H235: Měrná entropie s'' [kJ/kgK] | I235: 9.10660121 | J235: 6.60921221 | K235: 5.18506121
E241: Odchylky [%] hodnot vypočtených podle IF97 od hodnot IF95 :
E242: (jako 100% jsou vzaty hodnoty IF95)
F244: 275 | G244: 450 | H244: 625
E245: Měrná hmotnost r' [%] | F245: =(I230-C230)/I230*100 -> -9.912885832e-05 | G245: -0.000623413838 | H245: 0.00500284965
E246: Měrná hmotnost r'' [%] | F246: 0.003197822565 | G246: 0.0102697713 | H246: -0.01536469492
E247: Měrná entalpie h' [%] | F247: 0.002119203587 | G247: -0.01758695089 | H247: -0.0002104242804
E248: Měrná entalpie h'' [%] | F248: -4.630849529e-05 | G248: 2.129968194e-05 | H248: 0.002542302076
E249: Měrná entropie s' [%] | F249: 0.002335461273 | G249: -0.01364627825 | H249: 0.0009334304632
E250: Měrná entropie s'' [%] | F250: -0.0001714556313 | G250: -0.0001546158192 | H250: 0.002792866515

Sheet Prázdný list
